bitfinex-derivatives/quotes_SOLF0:USTF0_20250415
["timestamp","ask_amount","ask_price","bid_price","bid_amount"]
[1744736346894,8.06040865,129.66,129.62,36.7351]
[1744736347099,8.06040865,129.66,129.62,29.02]
[1744736347402,7.7139,129.65,129.62,36.7351]
[1744736347596,7.76673101,129.65,129.62,36.78437413]
[1744736348103,8.06040865,129.63,129.62,29.06927413]
[1744736348294,8.06040865,129.64,129.62,29.06927413]
[1744736348500,0.05283101,129.65,129.62,29.06927413]
[1744736348700,8.11323966,129.65,129.62,29.06927413]
[1744736349198,7.7145,129.64,129.62,29.06927413]
[1744736352109,15.82713966,129.65,129.62,29.06927413]
[1744736352308,0.05283101,129.65,129.62,37.12968278]
[1744736352907,0.05283101,129.65,129.63,8.06040865]
[1744736353410,7.76653101,129.65,129.63,8.06040865]
[1744736353610,0.05283101,129.65,129.63,8.06040865]
[1744736354005,7.76643101,129.65,129.63,8.06040865]
[1744736354410,7.76643101,129.65,129.62,37.12968278]
[1744736355311,8.11323966,129.65,129.62,29.06927413]
[1744736355507,8.06040865,129.63,129.62,29.06927413]
[1744736356010,15.77520865,129.63,129.62,29.06927413]
[1744736360518,15.77520865,129.63,129.62,0.04927413]
[1744736360718,8.06040865,129.63,129.56,35.3513]
[1744736360925,8.06040865,129.58,129.56,35.3513]
[1744736361827,15.83170207,129.58,129.56,35.40051913]
[1744736362627,8.11360207,129.58,129.56,43.11941913]
[1744736362827,0.05319342,129.58,129.56,43.11941913]
[1744736364128,8.11360207,129.58,129.56,33.39781913]
[1744736364329,8.11360207,129.58,129.56,31.24701913]
[1744736364529,8.11360207,129.58,129.56,29.06921913]
[1744736366031,15.77880865,129.57,129.56,29.06921913]
[1744736366332,7.7184,129.57,129.56,29.06921913]
[1744736366830,0.05319342,129.58,129.56,29.06921913]
[1744736367130,0.05319342,129.58,129.56,37.12962778]
[1744736367330,0.05319342,129.58,129.57,7.7184]
[1744736367631,8.06040865,129.64,129.57,8.06040865]
[1744736367932,8.06040865,129.66,129.61,8.06040865]
[1744736368125,8.06040865,129.66,129.62,29.04]
[1744736368629,0.05122033,129.65,129.64,7.7142]
[1744736369337,0.05122033,129.65,129.63,0.05798171]
[1744736370032,0.05122033,129.65,129.63,7.77258171]
[1744736372028,7.76492033,129.65,129.63,0.05798171]
[1744736372223,371.07971923,129.78,129.64,12.58489676]
[1744736372432,12.58489676,129.72,129.65,29.02]
[1744736372629,7.7106,129.71,129.66,36.7326]
[1744736373234,0.05097477,129.7,129.67,7.76484353]
[1744736373433,0.05097477,129.7,129.67,0.05254353]
[1744736373937,0.05097477,129.7,129.69,7.7113]
[1744736374129,0.05097477,129.7,129.69,36.7313]
[1744736375338,0.05097477,129.7,129.69,29.02]
[1744736378632,0.05097477,129.7,129.68,7.7118]
[1744736378839,12.63587153,129.7,129.67,0.05254353]
[1744736379338,7.7117,129.69,129.67,0.05254353]
[1744736380541,20.34687153,129.7,129.67,7.76494353]
[1744736381443,0.05097477,129.7,129.68,7.7116]
[1744736382442,7.76167477,129.7,129.67,7.76474353]
[1744736382638,0.05097477,129.7,129.67,0.05254353]
[1744736383043,7.7116,129.69,129.67,0.05254353]
[1744736384043,7.7119,129.68,129.67,0.05254353]
[1744736384948,7.7116,129.69,129.67,0.05254353]
[1744736385549,12.63587153,129.7,129.67,0.05254353]
[1744736385749,7.7119,129.68,129.67,0.05254353]
[1744736388749,20.29679676,129.68,129.67,0.05254353]
[1744736393650,7.7145,129.64,129.62,7.7151]
[1744736394856,0.05686062,129.64,129.63,7.7148]
[1744736395953,0.05686062,129.64,129.62,0.05292134]
[1744736395954,0.05686062,129.64,129.62,7.76802134]
[1744736398058,0.05686062,129.64,129.63,7.7148]
[1744736399055,8.05536968,129.68,129.65,7.7135]
[1744736399253,8.05536968,129.68,129.64,29.02]
[1744736399958,7.7128,129.67,129.64,36.7339]
[1744736400159,7.7644079,129.67,129.64,36.78555851]
[1744736400458,0.0516079,129.67,129.64,29.07165851]
[1744736400660,0.0516079,129.67,129.65,7.7135]
[1744736400957,0.0516079,129.67,129.65,10.12026968]
[1744736401156,8.05536968,129.71,129.66,8.05536968]
[1744736401358,8.05536968,129.69,129.67,29.02]
[1744736401550,8.05536968,129.68,129.67,29.02]
[1744736401859,15.76726968,129.68,129.67,29.02]
[1744736402261,8.05536968,129.68,129.66,0.05133805]
[1744736402454,15.76786968,129.67,129.66,0.05133805]
[1744736405255,8.10965186,129.69,129.66,0.05133805]
[1744736405559,0.05428218,129.69,129.68,8.05536968]
[1744736405861,8.05536968,129.71,129.67,33.1799]
[1744736406164,8.05536968,129.73,129.67,41.23526968]
[1744736406363,7.7103,129.71,129.68,15.76686968]
[1744736406556,8.05536968,129.7,129.67,31.0867]
[1744736406856,8.10816322,129.7,129.67,29.0769552]
[1744736407058,7.7115,129.69,129.67,29.0769552]
[1744736408068,7.7119,129.68,129.67,29.0769552]
[1744736408257,15.76726968,129.68,129.67,0.0569552]
[1744736408463,8.05536968,129.68,129.62,29.0]
[1744736408762,8.05536968,129.63,129.59,557.4997]
[1744736408964,8.05536968,129.61,129.59,586.4997]
[1744736409158,8.05536968,129.61,129.59,31.0997]
[1744736409359,358.49482247,129.67,129.6,8.05536968]
[1744736409562,8.05536968,129.65,129.6,10.23506968]
[1744736409863,15.82340975,129.65,129.62,7.77131859]
[1744736410060,15.82340975,129.65,129.62,36.77131859]
[1744736410667,7.7143,129.64,129.62,29.05621859]
[1744736411863,7.7142,129.64,129.62,29.05621859]
[1744736412665,0.05414007,129.65,129.62,29.05621859]
[1744736412964,7.7148,129.63,129.62,29.05621859]
[1744736415664,7.7146,129.64,129.62,29.05621859]
[1744736417066,7.7148,129.63,129.62,29.05621859]
[1744736419571,7.7148,129.63,129.62,0.05621859]
[1744736419768,7.7166,129.6,129.59,29.0]
[1744736420268,12.58793283,129.61,129.54,6.2041]
[1744736420474,12.58793283,129.58,129.54,4.0565]
[1744736420666,12.58793283,129.58,129.54,11.7766]
[1744736420972,0.05411563,129.57,129.55,0.05846416]
[1744736421274,7.719,129.56,129.55,0.05846416]
[1744736422366,7.77281563,129.57,129.55,0.05846416]
[1744736422972,7.719,129.56,129.55,0.05846416]
[1744736425371,7.77271563,129.57,129.55,0.05846416]
[1744736426072,7.719,129.56,129.55,0.05846416]
[1744736426571,0.05411563,129.57,129.55,0.05846416]
[1744736426771,7.77291563,129.57,129.55,0.05846416]
[1744736427073,0.05411563,129.57,129.55,0.05846416]
[1744736427270,7.719,129.56,129.55,0.05846416]
[1744736427574,20.30693283,129.56,129.55,0.05846416]
[1744736428373,12.58793283,129.56,129.49,29.02]
[1744736428570,12.58793283,129.53,129.49,29.02]
[1744736429174,7.7223,129.51,129.47,8.43232427]
[1744736429372,0.05038292,129.5,129.48,0.05565793]
[1744736430178,12.58793283,129.49,129.48,0.05565793]
[1744736430377,20.31113283,129.49,129.48,0.05565793]
[1744736431979,7.7238,129.48,129.47,0.70852427]
[1744736434979,20.31143283,129.49,129.47,0.70852427]
[1744736435180,7.7235,129.49,129.47,0.70852427]
[1744736435586,7.7238,129.48,129.47,0.70852427]
[1744736435780,12.58793283,129.48,129.45,0.70251917]
[1744736435985,12.58793283,129.46,129.45,0.70251917]
[1744736436284,7.7264,129.44,129.42,2.0158]
[1744736436886,7.78572708,129.44,129.42,2.0723336]
[1744736437391,7.7268,129.43,129.42,0.0565336]
[1744736437589,12.64725991,129.44,129.42,0.0565336]
[1744736438484,0.05932708,129.44,129.42,0.0565336]
[1744736438689,383.67068813,129.43,129.32,7.7329]
[1744736438890,12.58793283,129.38,129.32,7.7329]
[1744736439090,7.7313,129.36,129.31,4.1059]
[1744736439391,7.7313,129.36,129.31,11.8395]
[1744736439587,0.05553745,129.35,129.31,4.1059]
[1744736439890,0.05553745,129.35,129.32,29.02]
[1744736440194,7.78743745,129.35,129.32,29.02]
[1744736440988,7.7322,129.34,129.32,29.02]
[1744736441189,0.05553745,129.35,129.32,29.02]
[1744736441493,7.78723745,129.35,129.32,29.02]
[1744736442292,0.05553745,129.35,129.32,29.02]
[1744736442793,12.58793283,129.34,129.31,4.1059]
[1744736443494,7.733,129.33,129.31,4.1059]
[1744736444196,20.32013283,129.34,129.31,4.1059]
[1744736444905,12.58793283,129.34,129.31,11.8398]
[1744736445091,12.58793283,129.34,129.31,4.1059]
[1744736446093,0.05553745,129.35,129.31,4.1059]
[1744736446390,0.05553745,129.35,129.32,29.04]
[1744736447494,7.78763745,129.35,129.32,29.04]
[1744736448195,7.7322,129.34,129.32,29.04]
[1744736450896,0.05553745,129.35,129.32,29.04]
[1744736451297,7.78733745,129.35,129.32,29.04]
[1744736451499,0.05553745,129.35,129.32,29.04]
[1744736452202,7.78733745,129.35,129.32,36.7732]
[1744736452401,0.05553745,129.35,129.32,36.7732]
[1744736454202,7.78713745,129.35,129.32,36.7732]
[1744736454802,0.05553745,129.35,129.32,29.04]
[1744736455504,0.05553745,129.35,129.33,7.7325]
[1744736457703,0.05553745,129.35,129.32,36.773]
[1744736457901,7.78743745,129.35,129.32,29.04]
[1744736458097,7.78743745,129.35,129.32,36.7732]
[1744736458294,7.78743745,129.35,129.32,29.04]
[1744736458603,7.78743745,129.35,129.32,36.7732]
[1744736459004,7.78743745,129.35,129.32,29.04]
[1744736459503,7.7322,129.34,129.32,29.04]
[1744736459904,0.05553745,129.35,129.32,29.04]
[1744736460304,7.7321,129.34,129.32,29.04]
[1744736460708,7.7339,129.31,129.3,2.1206]
[1744736460903,7.7339,129.31,129.28,36.7954]
[1744736461299,7.7346,129.3,129.28,29.06]
[1744736461509,12.63906414,129.32,129.28,29.06]
[1744736461806,7.7348,129.3,129.28,29.06]
[1744736462201,12.63906414,129.32,129.28,29.06]
[1744736462506,7.7351,129.29,129.28,29.06]
[1744736463104,7.7347,129.3,129.28,29.06]
[1744736463304,12.63906414,129.32,129.28,29.06]
[1744736463606,7.7343,129.31,129.28,36.7957]
[1744736464108,7.7343,129.31,129.28,29.06]
[1744736464308,0.05113131,129.32,129.28,29.06]
[1744736464701,0.05113131,129.32,129.29,7.7347]
[1744736465302,0.05113131,129.32,129.3,7.7345]
[1744736465908,0.05113131,129.32,129.29,7.7348]
[1744736466607,0.05113131,129.32,129.3,7.7345]
[1744736466909,0.05113131,129.32,129.28,29.06]
[1744736467105,0.05113131,129.32,129.31,7.7339]
[1744736467305,0.05113131,129.32,129.28,29.06]
[1744736467706,0.05113131,129.32,129.3,7.7342]
[1744736468207,0.05113131,129.32,129.28,29.06]
[1744736468403,358.49482247,129.4,129.29,0.05138519]
[1744736468609,371.0827553,129.4,129.31,12.58793283]
[1744736468806,358.49482247,129.4,129.33,12.58793283]
[1744736469004,29.2,129.43,129.34,2.0243]
[1744736469207,12.58793283,129.44,129.35,41.78793283]
[1744736469499,0.05222951,129.41,129.39,12.58793283]
[1744736469698,193.67246209,129.48,129.4,33.3782]
[1744736470109,12.58793283,129.48,129.4,33.3782]
[1744736470509,12.58793283,129.44,129.4,33.3782]
[1744736470810,12.58793283,129.42,129.33,12.58793283]
[1744736471010,12.58793283,129.42,129.38,7.7293]
[1744736471210,12.58793283,129.42,129.38,36.9093]
[1744736471811,0.05844371,129.41,129.39,0.04944904]
[1744736472510,12.64637654,129.41,129.39,0.04944904]
[1744736473414,20.37467654,129.41,129.39,0.04944904]
[1744736473916,7.7285,129.4,129.39,0.04944904]
[1744736476111,12.64637654,129.41,129.32,585.78]
[1744736476306,12.58793283,129.37,129.28,12.58793283]
[1744736476510,7.7322,129.34,129.29,29.18]
[1744736476812,7.7322,129.34,129.3,7.7342]
[1744736477112,0.04975645,129.33,129.29,29.18]
[1744736477311,0.04975645,129.33,129.3,7.7344]
[1744736477914,0.04975645,129.33,129.31,7.7339]
[1744736478813,0.04975645,129.33,129.3,7.7342]
[1744736479219,0.04975645,129.33,129.29,36.9148]
[1744736479718,0.04975645,129.33,129.29,29.18]
[1744736480012,7.7336,129.32,129.29,29.18]
[1744736480816,7.7343,129.31,129.29,29.18]
[1744736481118,12.63768928,129.33,129.29,29.18]
[1744736481616,12.63768928,129.33,129.27,35.2444]
[1744736482016,12.63768928,129.33,129.27,42.9803]
[1744736482211,12.58793283,129.31,129.27,33.1889]
[1744736482417,0.05549452,129.3,129.27,29.18]
[1744736482617,7.7354,129.29,129.27,29.18]
[1744736483117,7.7354,129.29,129.25,7.7372]
[1744736483319,7.7354,129.29,129.25,36.9372]
[1744736484119,12.58793283,129.29,129.23,6.1655]
[1744736484413,0.05420703,129.27,129.23,6.1655]
[1744736484717,7.79080703,129.27,129.23,13.9041]
[1744736484919,0.05420703,129.27,129.23,6.1655]
[1744736485221,7.79050703,129.27,129.23,13.9039]
[1744736485616,0.05420703,129.27,129.23,18.75343283]
[1744736485921,12.58793283,129.33,129.23,18.75343283]
[1744736486114,12.58793283,129.33,129.24,29.2]
[1744736486621,12.58793283,129.33,129.25,12.58793283]
[1744736486816,0.05013869,129.3,129.29,7.735]
[1744736487011,0.05013869,129.3,129.28,0.05141054]
[1744736487216,12.58793283,129.29,129.28,0.05141054]
[1744736487418,20.32303283,129.29,129.28,0.05141054]
[1744736490922,12.58793283,129.29,129.28,0.05141054]
[1744736491226,0.05013869,129.3,129.28,0.05141054]
[1744736491728,7.7351,129.29,129.28,0.05141054]
[1744736491922,0.05013869,129.3,129.28,0.05141054]
[1744736492522,12.58793283,129.34,129.28,6.11301054]
[1744736493226,7.733,129.33,129.29,7.7347]
[1744736493428,0.05096067,129.32,129.29,7.7347]
[1744736493727,0.05096067,129.32,129.3,29.2]
[1744736494117,7.78436067,129.32,129.3,29.2]
[1744736494328,0.05096067,129.32,129.3,36.9344]
[1744736496229,0.05096067,129.32,129.31,7.7339]
[1744736496617,0.05096067,129.32,129.3,29.2]
[1744736498127,400.2827553,129.4,129.3,49.52793283]
[1744736498327,12.58793283,129.4,129.32,12.58793283]
[1744736498529,7.7288,129.4,129.37,7.7303]
[1744736498930,12.58793283,129.42,129.36,29.56]
[1744736499230,12.64287427,129.4,129.37,0.05207358]
[1744736499427,0.05494144,129.4,129.37,0.05207358]
[1744736499632,358.49482247,129.44,129.4,7.7281]
[1744736499831,12.58793283,129.44,129.4,29.56]
[1744736500232,12.58793283,129.42,129.4,29.56]
[1744736500433,25.17586566,129.42,129.35,29.56]
[1744736500633,12.58793283,129.39,129.37,0.04932598]
[1744736500831,7.7299,129.38,129.37,0.04932598]
[1744736501023,12.58793283,129.39,129.37,0.04932598]
[1744736501835,7.7297,129.38,129.37,0.04932598]
[1744736502029,12.58793283,129.39,129.37,0.04932598]
[1744736502228,0.04914938,129.4,129.38,29.56]
[1744736502840,0.04914938,129.4,129.38,37.2893]
[1744736503335,0.04914938,129.4,129.38,29.56]
[1744736504749,0.04914938,129.4,129.39,7.7291]
[1744736505046,12.58793283,129.45,129.38,33.7034]
[1744736505247,7.7267,129.44,129.4,7.7281]
[1744736505444,7.7267,129.44,129.41,29.56]
[1744736505645,358.49482247,129.46,129.41,29.56]
[1744736505949,7.7271,129.43,129.42,0.05162378]
[1744736506946,20.31503283,129.43,129.42,0.0012066]
[1744736507250,12.58793283,129.43,129.38,29.54]
[1744736507448,12.58793283,129.4,129.38,29.54]
[1744736507747,7.7291,129.39,129.38,29.54]
[1744736509144,7.7297,129.38,129.37,0.05083352]
[1744736509350,20.31763283,129.38,129.37,0.05083352]
[1744736509751,12.58793283,129.38,129.33,29.54]
[1744736509949,7.7319,129.35,129.33,29.54]
[1744736510647,0.05473145,129.35,129.33,29.59643521]
[1744736511148,0.05473145,129.35,129.33,37.32893521]
[1744736511750,7.78633145,129.35,129.33,29.59643521]
[1744736511948,0.05473145,129.35,129.33,29.59643521]
[1744736513152,7.7321,129.34,129.33,29.59643521]
[1744736513345,0.05473145,129.35,129.33,29.59643521]
[1744736514453,7.78643145,129.35,129.33,29.59643521]
[1744736515355,0.05473145,129.35,129.33,37.32883521]
[1744736515754,0.05473145,129.35,129.33,0.05643521]
[1744736516058,12.58793283,129.34,129.3,0.27812]
[1744736516258,12.58793283,129.32,129.3,0.27812]
[1744736516949,12.58793283,129.32,129.3,0.33315018]
[1744736517156,7.7339,129.31,129.3,0.33315018]
[1744736517457,12.64410308,129.32,129.3,0.33315018]
[1744736517753,0.05617025,129.32,129.3,29.87315018]
[1744736518752,12.58793283,129.38,129.31,4.0507]
[1744736519154,12.58793283,129.38,129.33,7.7324]
[1744736519554,7.7307,129.37,129.33,7.7324]
[1744736519761,7.7834181,129.37,129.34,7.78614774]
[1744736519958,7.7834181,129.37,129.34,29.61404774]
[1744736519959,0.0527181,129.37,129.34,29.61404774]
[1744736520163,0.0527181,129.37,129.35,7.7315]
[1744736520350,12.58793283,129.43,129.34,42.20198057]
[1744736520554,12.58793283,129.43,129.34,42.14793283]
[1744736521159,7.7289,129.4,129.34,29.56]
[1744736521360,0.04940997,129.38,129.36,0.05549505]
[1744736521550,0.04940997,129.38,129.37,29.56]
[1744736521861,0.04940997,129.38,129.37,37.2903]
[1744736522961,0.04940997,129.38,129.37,29.56]
[1744736523960,7.77910997,129.38,129.37,29.56]
[1744736524161,0.04940997,129.38,129.37,29.56]
[1744736525461,0.04940997,129.38,129.36,0.05549505]
[1744736525864,7.7303,129.37,129.36,0.05549505]
[1744736529568,0.04940997,129.38,129.36,0.05549505]
[1744736529867,358.49482247,129.41,129.37,29.56]
[1744736530066,366.22302247,129.41,129.38,7.7295]
[1744736530368,358.49482247,129.41,129.37,33.7478]
[1744736530663,362.59752247,129.47,129.37,33.7478]
[1744736530864,358.49482247,129.47,129.37,33.7478]
[1744736531264,358.49482247,129.47,129.41,7.7276]
[1744736531464,358.49482247,129.47,129.42,29.56]
[1744736531965,358.49482247,129.47,129.37,4.1878]
[1744736531966,0.05579587,129.46,129.43,0.0504085]
[1744736532166,0.05838992,129.46,129.43,0.0504085]
[1744736532368,7.7262,129.44,129.43,0.0504085]
[1744736532562,0.05838992,129.46,129.43,0.0504085]
[1744736532867,7.726,129.45,129.43,0.0504085]
[1744736533070,0.05838992,129.46,129.43,0.0504085]
[1744736533764,7.7256,129.45,129.43,0.0504085]
[1744736533976,0.05838992,129.46,129.43,0.0504085]
[1744736534361,7.7256,129.45,129.43,0.0504085]
[1744736534565,0.05838992,129.46,129.43,0.0504085]
[1744736535261,0.05838992,129.46,129.43,7.7769085]
[1744736535874,7.78368992,129.46,129.43,7.7769085]
[1744736536072,0.05838992,129.46,129.43,7.7769085]
[1744736536272,0.05838992,129.46,129.44,7.7261]
[1744736536574,0.05838992,129.46,129.43,0.0504085]
[1744736536969,20.21461444,129.45,129.39,29.56]
[1744736538073,0.05882264,129.43,129.41,0.04930024]
[1744736538275,20.27343708,129.43,129.34,29.56]
[1744736538476,7.7301,129.38,129.35,9.711]
[1744736538669,20.21461444,129.41,129.35,1.9796]
[1744736539170,7.7304,129.37,129.35,9.7111]
[1744736539376,7.7304,129.37,129.35,2.03169174]
[1744736539671,7.7304,129.37,129.35,0.05209174]
[1744736539875,0.04920089,129.39,129.35,0.05209174]
[1744736539876,7.7309,129.36,129.35,0.05209174]
[1744736542369,20.21461444,129.37,129.31,29.56]
[1744736543175,20.21461444,129.35,129.31,29.56]
[1744736543475,7.7321,129.34,129.33,0.05576144]
[1744736544075,7.78608689,129.35,129.33,0.05576144]
[1744736544278,0.05428689,129.35,129.33,0.05576144]
[1744736544772,7.7321,129.34,129.33,0.05576144]
[1744736546480,20.26890133,129.35,129.28,29.56]
[1744736546682,20.21461444,129.33,129.28,29.56]
[1744736546980,7.7346,129.3,129.28,29.56]
[1744736547480,7.7351,129.29,129.28,0.05420964]
[1744736551182,7.7357,129.28,129.27,0.30755]
[1744736559587,7.7354,129.29,129.27,0.30755]
[1744736559788,0.0501678,129.3,129.27,0.30755]
[1744736560089,0.0501678,129.3,129.27,4.60295]
[1744736560382,358.49482247,129.35,129.27,17.26173221]
[1744736560591,358.49482247,129.35,129.28,2.1238]
[1744736560786,358.49482247,129.35,129.29,29.44]
[1744736560982,358.49482247,129.35,129.29,37.1749]
[1744736561383,7.78473939,129.33,129.31,0.05776473]
[1744736562290,12.65878221,129.38,129.32,29.44]
[1744736562686,12.65878221,129.36,129.32,29.44]
[1744736563085,7.7327,129.34,129.32,29.44]
[1744736563287,7.7327,129.34,129.32,29.49876601]
[1744736563288,7.78332928,129.34,129.32,29.49876601]
[1744736563992,7.7327,129.33,129.32,29.49876601]
[1744736564298,0.05062928,129.34,129.32,29.49876601]
[1744736564892,378.72952179,129.4,129.32,29.49876601]
[1744736565090,378.72952179,129.4,129.33,2.0678]
[1744736565490,7.7307,129.37,129.33,2.0678]
[1744736565894,0.0489091,129.36,129.34,0.04897302]
[1744736566285,0.0489091,129.36,129.34,7.78077302]
[1744736567495,358.49482247,129.4,129.35,37.1515]
[1744736567794,20.23469932,129.4,129.34,0.04897302]
[1744736568297,20.23469932,129.38,129.34,0.04897302]
[1744736568499,20.23469932,129.36,129.34,0.04897302]
[1744736568794,7.7315,129.35,129.34,0.04897302]
[1744736571894,7.7313,129.36,129.34,0.04897302]
[1744736572100,0.05027648,129.37,129.34,0.04897302]
[1744736572398,0.05027648,129.37,129.35,29.42]
[1744736572603,20.23469932,129.42,129.35,29.42]
[1744736572895,358.49482247,129.45,129.36,4.0701]
[1744736573089,366.22072247,129.45,129.42,7.7273]
[1744736573294,358.49482247,129.45,129.41,29.42]
[1744736573493,358.49482247,129.45,129.42,29.42]
[1744736573698,358.54604175,129.45,129.42,29.47845371]
[1744736573896,358.54604175,129.45,129.43,7.7264]
[1744736574102,358.54604175,129.45,129.42,29.47845371]
[1744736574306,7.7235,129.49,129.42,29.47845371]
[1744736574490,7.7235,129.49,129.43,4.1386]
[1744736574894,7.7235,129.49,129.45,7.7253]
[1744736575197,7.7235,129.49,129.46,29.42]
[1744736575498,7.78136365,129.49,129.46,29.47180889]
[1744736575799,0.05786365,129.49,129.46,29.47180889]
[1744736575997,358.49482247,129.55,129.46,29.47180889]
[1744736576190,358.49482247,129.55,129.46,29.42]
[1744736576398,7.7205,129.54,129.46,29.42]
[1744736576596,7.7205,129.54,129.49,7.7229]
[1744736576797,7.7205,129.54,129.5,29.42]
[1744736576999,0.04991242,129.53,129.51,0.05560102]
[1744736579606,358.49482247,129.59,129.54,7.7199]
[1744736579906,358.49482247,129.59,129.55,29.4]
[1744736580105,358.49482247,129.59,129.56,29.4]
[1744736580306,358.49482247,129.59,129.57,29.4]
[1744736580501,366.26919765,129.59,129.57,29.45189107]
[1744736580802,358.55159765,129.59,129.57,29.45189107]
[1744736581008,358.55159765,129.59,129.57,0.05189107]
[1744736581210,7.7178,129.58,129.57,0.05189107]
[1744736581405,358.55159765,129.59,129.57,0.05189107]
[1744736582207,366.26909765,129.59,129.57,0.05189107]
[1744736582408,358.55159765,129.59,129.57,0.05189107]
[1744736582708,366.26909765,129.59,129.57,0.05189107]
[1744736582909,358.55159765,129.59,129.57,0.05189107]
[1744736583606,20.23469932,129.58,129.51,35.7467]
[1744736583808,20.23469932,129.56,129.5,29.4]
[1744736584007,20.23469932,129.56,129.51,29.4]
[1744736584606,7.7208,129.54,129.51,29.4]
[1744736584808,0.05371053,129.55,129.52,0.05659086]
[1744736585712,7.7208,129.53,129.52,0.05659086]
[1744736586016,0.05371053,129.55,129.52,0.05659086]
[1744736586311,7.77371053,129.55,129.52,0.05659086]
[1744736586517,0.05371053,129.55,129.52,0.05659086]
[1744736589017,0.05371053,129.55,129.52,7.77789086]
[1744736589220,0.05371053,129.55,129.52,0.05659086]
[1744736590117,384.97602179,129.64,129.53,555.88]
[1744736590319,384.97602179,129.64,129.54,31.4863]
[1744736590519,384.97602179,129.64,129.57,7.7184]
[1744736590721,20.23469932,129.6,129.54,2.0863]
[1744736590916,20.23469932,129.6,129.55,29.4]
[1744736591217,0.05737726,129.58,129.56,0.05672308]
[1744736594122,0.05737726,129.58,129.56,7.77552308]
[1744736594319,0.05737726,129.58,129.56,0.05672308]
[1744736595226,0.05737726,129.58,129.57,7.7184]
[1744736597830,358.49482247,129.63,129.61,7.716]
[1744736598329,408.12952179,129.62,129.52,31.3834]
[1744736598528,20.23469932,129.58,129.52,31.3834]
[1744736598827,0.05136213,129.56,129.55,7.7196]
[1744736599020,0.05557174,129.57,129.54,0.05808487]
[1744736599422,0.05557174,129.57,129.56,7.719]
[1744736600129,358.49482247,129.61,129.58,7.7174]
[1744736600323,7.7157,129.62,129.58,29.4]
[1744736600725,7.7161,129.61,129.58,29.4]
[1744736601028,20.23469932,129.64,129.58,29.4]
[1744736601228,0.05736463,129.62,129.6,0.05250154]
[1744736601628,7.77306463,129.62,129.6,0.05250154]
[1744736601828,0.05736463,129.62,129.6,0.05250154]
[1744736602328,7.77306463,129.62,129.6,0.05250154]
[1744736603531,0.05736463,129.62,129.6,0.05250154]
[1744736604032,7.77326463,129.62,129.6,0.05250154]
[1744736604232,7.77326463,129.62,129.6,7.76900154]
[1744736604431,0.05736463,129.62,129.6,0.05250154]
[1744736604824,0.05736463,129.62,129.61,37.116]
[1744736605033,358.49482247,129.65,129.61,29.4]
[1744736605232,49.63469932,129.68,129.61,29.4]
[1744736605432,7.7131,129.66,129.63,7.7144]
[1744736605629,20.23469932,129.66,129.61,29.4]
[1744736605926,20.23469932,129.66,129.61,37.1159]
[1744736605927,7.7146,129.64,129.61,37.1159]
[1744736606133,0.05390019,129.65,129.62,0.04904476]
[1744736606332,7.7148,129.63,129.62,0.04904476]
[1744736610032,7.7146,129.64,129.62,0.04904476]
[1744736611340,7.7146,129.64,129.62,7.76434476]
[1744736611542,7.7146,129.64,129.62,0.04904476]
[1744736611735,7.7148,129.63,129.62,0.04904476]
[1744736613136,7.7145,129.64,129.62,0.04904476]
[1744736613529,7.7145,129.64,129.62,7.76414476]
[1744736613729,7.7145,129.64,129.62,0.04904476]
[1744736613938,7.7148,129.63,129.62,0.04904476]
[1744736616438,358.54872266,129.65,129.58,29.38]
[1744736616439,7.7172,129.59,129.58,29.38]
[1744736616641,20.23469932,129.6,129.55,29.38]
[1744736616941,7.7187,129.57,129.55,29.38]
[1744736617540,7.7187,129.57,129.55,29.42922925]
[1744736617541,7.76728436,129.57,129.55,29.42922925]
[1744736618440,0.04858436,129.57,129.55,29.42922925]
[1744736619241,0.04858436,129.57,129.56,7.719]
[1744736619434,24.39519932,129.64,129.56,1.974]
[1744736619835,7.7166,129.61,129.56,1.974]
[1744736620037,358.49482247,129.65,129.56,1.974]
[1744736620240,7.7152,129.63,129.57,2.0517]
[1744736620432,0.04945739,129.62,129.59,0.04876344]
[1744736621343,7.7163,129.61,129.59,0.04876344]
[1744736621641,0.04945739,129.62,129.59,0.04876344]
[1744736621842,7.7163,129.61,129.59,0.04876344]
[1744736622342,7.7163,129.61,129.59,7.76596344]
[1744736622843,7.7166,129.6,129.59,0.04876344]
[1744736623233,20.28415671,129.62,129.55,29.34]